No. of Trans,Dept Family,Entity Name,Cert Date,Supplier Name,Reference,Gross Amt,Group/Department,Type of Expenditure - Subjective Codes
1,DCMS,EH,30/03/2012,University of Oxford,20040073,"30,000.00",National Collections Group - Conservation Dept,OPERATIONAL COSTS - Built Environment Research
2,DCMS,EH,20/03/2012,Land Use Consultants,20038610,"25,000.00",Heritage Protection & Planning Group - Heritage Protection Department,ENABLING PROGRAMMES - Hist Environ Prog Projects Gra
3,DCMS,EH,14/03/2012,University of London,20037825,"37,000.00",Heritage Protection & Planning Group - Heritage Protection Department,ENABLING PROGRAMMES - Hist Environ Prog Projects Gra
4,DCMS,EH,27/03/2012,Wiltshire Arch and Nat History Soc,20040463,"100,000.00",National Collections Group - National Collections Centre,GRANTS PAYABLE - Other Grants
5,DCMS,EH,13/03/2012,Oxford Archaeological Unit Ltd,20037698,"33,888.00",Heritage Protection & Planning Group - Heritage Protection Department,OPERATIONAL COSTS - Maritime Consultants
6,DCMS,EH,06/03/2012,Purcell Miller Tritton LLP,20037335,"41,251.80",National Collections Group - Site Conservation Programme,OPERATIONAL COSTS - Fees for Professional Advice
7,DCMS,EH,30/03/2012,Purcell Miller Tritton LLP,20041272,"41,251.80",National Collections Group - Site Conservation Programme,OPERATIONAL COSTS - Fees for Professional Advice
8,DCMS,EH,30/03/2012,The Downland Partnership Ltd,20041302,"30,414.00",National Collections Group - Site Conservation Programme,OPERATIONAL COSTS - Works for Heritage Buildings
9,DCMS,EH,30/03/2012,The Downland Partnership Ltd,20041302,"9,565.20",National Collections Group - Site Conservation Programme,OPERATIONAL COSTS - Works for Heritage Buildings
10,DCMS,EH,30/03/2012,The Colourhouse Ltd,20041366,"27,365.00",National Collections Group - Curatorial Department,TOTAL STOCK - Guidebooks WIP
11,DCMS,EH,29/03/2012,Treasure and Son,20040399,"1,280.71",National Collections Group - Curatorial Department,OPERATIONAL COSTS - Annual Cyclical Works-Building
12,DCMS,EH,29/03/2012,Treasure and Son,20040399,"53,400.32",National Collections Group - Property Maintenance Programme,OPERATIONAL COSTS - Annual Cyclical Works-Building
13,DCMS,EH,29/03/2012,Treasure and Son,20040399,"1,074.37",National Collections Group - Property Maintenance Programme,OPERATIONAL COSTS - Leased Accomodation Maint
14,DCMS,EH,29/03/2012,Treasure and Son,20040399,"3,550.38",National Collections Group - Property Maintenance Programme,OPERATIONAL COSTS - Annual Cyclical Works-Building
15,DCMS,EH,07/03/2012,T Butler and Sons Sawston Ltd,20036950,"21,598.20",National Collections Group - Property Maintenance Programme,OPERATIONAL COSTS - Planned Maintenance
16,DCMS,EH,07/03/2012,T Butler and Sons Sawston Ltd,20036950,"43,828.16",National Collections Group - Property Maintenance Programme,OPERATIONAL COSTS - Planned Maintenance
17,DCMS,EH,13/03/2012,Scottish Power,20037671,"14,366.77",National Collections Group - Historic Properties Department,RUNNING COSTS - Electricity
18,DCMS,EH,13/03/2012,Scottish Power,20037671,"11,438.71",National Collections Group - Historic Properties Department,RUNNING COSTS - Electricity
19,DCMS,EH,27/03/2012,Salisbury and South Wilts Museum,20040462,"100,000.00",National Collections Group - National Collections Centre,GRANTS PAYABLE - Other Grants
20,DCMS,EH,30/03/2012,Parsons Landscapes Ltd,20041411,"1,647.04",National Collections Group - Property Maintenance Programme,OPERATIONAL COSTS - Annual Cyclical Work Grounds
21,DCMS,EH,30/03/2012,Parsons Landscapes Ltd,20041411,"1,422.24",National Collections Group - Property Maintenance Programme,OPERATIONAL COSTS - Annual Cyclical Work Grounds
22,DCMS,EH,30/03/2012,Parsons Landscapes Ltd,20041411,"35,868.54",National Collections Group - Property Maintenance Programme,OPERATIONAL COSTS - Annual Cyclical Work Grounds
23,DCMS,EH,30/03/2012,Parsons Landscapes Ltd,20041411,"7,819.63",National Collections Group - Property Maintenance Programme,OPERATIONAL COSTS - Annual Cyclical Work Grounds
24,DCMS,EH,30/03/2012,Parsons Landscapes Ltd,20041411,15.8,National Collections Group - Property Maintenance Programme,OPERATIONAL COSTS - Annual Cyclical Work Grounds
25,DCMS,EH,30/03/2012,Parsons Landscapes Ltd,20041411,252.82,National Collections Group - Property Maintenance Programme,OPERATIONAL COSTS - Annual Cyclical Work Grounds
26,DCMS,EH,30/03/2012,Parsons Landscapes Ltd,20041411,253.45,National Collections Group - Property Maintenance Programme,OPERATIONAL COSTS - Annual Cyclical Work Grounds
27,DCMS,EH,30/03/2012,Parsons Landscapes Ltd,20041411,46.38,National Collections Group - Property Maintenance Programme,OPERATIONAL COSTS - Annual Cyclical Work Grounds
28,DCMS,EH,30/03/2012,Parsons Landscapes Ltd,20041411,29.2,National Collections Group - Property Maintenance Programme,OPERATIONAL COSTS - Annual Cyclical Work Grounds
29,DCMS,EH,21/03/2012,Wiltshire Council,20039620,"320,600.00",National Collections Group - Historic Properties Department,RUNNING COSTS - Rates & CILOR
30,DCMS,EH,21/03/2012,Wiltshire Council,20039620,"-256,480.00",National Collections Group - Historic Properties Department,RUNNING COSTS - Rates Rebates
31,DCMS,EH,21/03/2012,Concept Displays (S.W) Ltd,20039005,"64,572.00",National Collections Group - Property Investment Programme,OTHER EXPENDITURE - Furniture <10k
32,DCMS,EH,30/03/2012,Concept Displays (S.W) Ltd,20040665,"31,199.95",National Collections Group - Property Investment Programme,OTHER EXPENDITURE - Equipment <10k
33,DCMS,EH,30/03/2012,Concept Displays (S.W) Ltd,20041128,"40,020.00",National Collections Group - Property Investment Programme,OTHER EXPENDITURE - Equipment <10k
34,DCMS,EH,19/03/2012,R Moulding and Co Salisbury Ltd,20037716,"63,399.19",National Collections Group - Property Maintenance Programme,OPERATIONAL COSTS - Annual Cyclical Works-Building
35,DCMS,EH,30/03/2012,R Moulding and Co Salisbury Ltd,20041666,"5,309.45",National Collections Group - Property Maintenance Programme,OPERATIONAL COSTS - Annual Cyclical Works-Building
36,DCMS,EH,30/03/2012,R Moulding and Co Salisbury Ltd,20041666,"5,275.43",National Collections Group - Property Maintenance Programme,OPERATIONAL COSTS - Annual Cyclical Works-Building
37,DCMS,EH,30/03/2012,R Moulding and Co Salisbury Ltd,20041666,"13,705.72",National Collections Group - Property Maintenance Programme,OPERATIONAL COSTS - Annual Cyclical Works-Building
38,DCMS,EH,30/03/2012,R Moulding and Co Salisbury Ltd,20041666,"9,206.57",National Collections Group - Property Maintenance Programme,OPERATIONAL COSTS - Annual Cyclical Works-Building
39,DCMS,EH,27/03/2012,Wessex Archaeology,20035117,"13,000.00",Heritage Protection & Planning Group - Heritage Protection Department,OPERATIONAL COSTS - Maritime Consultants
40,DCMS,EH,27/03/2012,Wessex Archaeology,20035117,"12,000.00",Heritage Protection & Planning Group - Heritage Protection Department,OPERATIONAL COSTS - Maritime Consultants
41,DCMS,EH,23/03/2012,Wessex Archaeology,20039744,"74,703.00",Heritage Protection & Planning Group - Heritage Protection Department,ENABLING PROGRAMMES - Hist Environ Prog Projects Gra
42,DCMS,EH,30/03/2012,Wessex Archaeology,20040320,"35,000.00",Heritage Protection & Planning Group - Heritage Protection Department,OPERATIONAL COSTS - Maritime Consultants
43,DCMS,EH,30/03/2012,Wessex Archaeology,20040320,"40,000.00",Heritage Protection & Planning Group - Heritage Protection Department,OPERATIONAL COSTS - Maritime Consultants
44,DCMS,EH,30/03/2012,Leica Geosystems Ltd,20039967,"10,800.00",Heritage Protection & Planning Group - Heritage Protection Department,NET FIXED ASSET EXPENDITURE - Plant & Equipment > 10k
45,DCMS,EH,30/03/2012,Leica Geosystems Ltd,20039967,"5,880.00",Heritage Protection & Planning Group - Heritage Protection Department,NET FIXED ASSET EXPENDITURE - Plant & Equipment > 10k
46,DCMS,EH,30/03/2012,Leica Geosystems Ltd,20039967,"18,960.00",Heritage Protection & Planning Group - Heritage Protection Department,NET FIXED ASSET EXPENDITURE - Plant & Equipment > 10k
47,DCMS,EH,30/03/2012,Leica Geosystems Ltd,20039967,840,Heritage Protection & Planning Group - Heritage Protection Department,NET FIXED ASSET EXPENDITURE - Plant & Equipment > 10k
48,DCMS,EH,30/03/2012,Leica Geosystems Ltd,20039967,224.4,Heritage Protection & Planning Group - Heritage Protection Department,NET FIXED ASSET EXPENDITURE - Plant & Equipment > 10k
49,DCMS,EH,30/03/2012,Leica Geosystems Ltd,20039967,147.6,Heritage Protection & Planning Group - Heritage Protection Department,NET FIXED ASSET EXPENDITURE - Plant & Equipment > 10k
50,DCMS,EH,30/03/2012,Leica Geosystems Ltd,20039967,295.2,Heritage Protection & Planning Group - Heritage Protection Department,NET FIXED ASSET EXPENDITURE - Plant & Equipment > 10k
51,DCMS,EH,30/03/2012,Leica Geosystems Ltd,20040316,"36,627.60",Heritage Protection & Planning Group - Heritage Protection Department,NET FIXED ASSET EXPENDITURE - Plant & Equipment > 10k
52,DCMS,EH,21/03/2012,Knight Frank LLP,20038389,"16,747.36",Resources Group - Operational Estates,RUNNING COSTS - Building Service Charges
53,DCMS,EH,21/03/2012,Knight Frank LLP,20038389,"45,353.70",Resources Group - Operational Estates,RUNNING COSTS - Rent - Operating Leases
54,DCMS,EH,21/03/2012,The National Trust Wiltshire,20039092,"1,647.60",National Collections Group - Local Managed Agreements,OPERATIONAL COSTS - RO management agreement
55,DCMS,EH,21/03/2012,The National Trust Wiltshire,20039092,"30,000.00",National Collections Group - Local Managed Agreements,OPERATIONAL COSTS - RO management agreement
56,DCMS,EH,20/03/2012,Guildford Borough Council - Bus. Rates,20039339,"55,659.03",Resources Group - Operational Estates,RUNNING COSTS - Rates & CILOR
57,DCMS,EH,12/03/2012,Sykes and Son Limited,20037826,"5,802.00",National Collections Group - Property Maintenance Programme,OPERATIONAL COSTS - Planned Maintenance
58,DCMS,EH,12/03/2012,Sykes and Son Limited,20037826,"155,257.20",National Collections Group - Property Investment Programme,NET WIP MOVEMENT - WIP Refurb & Fitting Out
59,DCMS,EH,30/03/2012,Sykes and Son Limited,20039088,"26,496.00",National Collections Group - Property Maintenance Programme,OPERATIONAL COSTS - Planned Maintenance
60,DCMS,EH,30/03/2012,Sykes and Son Limited,20041160,87.6,National Collections Group - Property Maintenance Programme,OPERATIONAL COSTS - Responsive Repairs M & E
61,DCMS,EH,30/03/2012,Sykes and Son Limited,20041160,591.18,National Collections Group - Property Maintenance Programme,OPERATIONAL COSTS - Responsive Repairs M & E
62,DCMS,EH,30/03/2012,Sykes and Son Limited,20041160,"27,823.39",National Collections Group - Property Maintenance Programme,OPERATIONAL COSTS - Responsive Repairs M & E
63,DCMS,EH,30/03/2012,Sykes and Son Limited,20041673,-659.06,National Collections Group - Property Maintenance Programme,OPERATIONAL COSTS - Annual Cyclical Works-Building
64,DCMS,EH,30/03/2012,Sykes and Son Limited,20041673,"33,834.87",National Collections Group - Property Maintenance Programme,OPERATIONAL COSTS - Annual Cyclical Works-Building
65,DCMS,EH,30/03/2012,Sykes and Son Limited,20041740,"36,712.80",National Collections Group - Historic Properties Department,OPERATIONAL COSTS - Planned Maintenance
66,DCMS,EH,30/03/2012,Sykes and Son Limited,20041782,"24,384.95",National Collections Group - Property Maintenance Programme,OPERATIONAL COSTS - Annual Cyclical Work M & E
67,DCMS,EH,30/03/2012,Sykes and Son Limited,20041782,"18,197.84",National Collections Group - Property Maintenance Programme,OPERATIONAL COSTS - Annual Cyclical Work M & E
68,DCMS,EH,14/03/2012,Skillington Workshop Ltd,20037870,"73,900.94",National Collections Group - Site Conservation Programme,OPERATIONAL COSTS - Works for Heritage Buildings
69,DCMS,EH,30/03/2012,Skillington Workshop Ltd,20041344,"83,275.06",National Collections Group - Site Conservation Programme,OPERATIONAL COSTS - Works for Heritage Buildings
70,DCMS,EH,30/03/2012,Skillington Workshop Ltd,20041344,"8,155.11",National Collections Group - Site Conservation Programme,OPERATIONAL COSTS - Works for Heritage Buildings
71,DCMS,EH,23/03/2012,Oracle Corporation UK Ltd,20039736,"41,397.96",Resources Group - IMT Dept,RUNNING COSTS - Software Maintenance
72,DCMS,EH,30/03/2012,PAYE Stonework and Restoration Ltd,20040144,"151,412.47",National Collections Group - Site Conservation Programme,OPERATIONAL COSTS - Works for Heritage Buildings
73,DCMS,EH,30/03/2012,PAYE Stonework and Restoration Ltd,20041296,"245,366.20",National Collections Group - Site Conservation Programme,OPERATIONAL COSTS - Works for Heritage Buildings
74,DCMS,EH,30/03/2012,Antenna Audio,20042722,"25,449.60",National Collections Group - Curatorial Department,SALES & PROMOTIONS - Exhibits/Displays
75,DCMS,EH,19/03/2012,Gillards Worldwide,20038499,"29,220.46",National Collections Group - Historic Properties Department,OPERATIONAL COSTS - Storage & warehousing
76,DCMS,EH,30/03/2012,Gillards Worldwide,20042401,"43,796.38",National Collections Group - Historic Properties Department,OPERATIONAL COSTS - Storage & warehousing
77,DCMS,EH,14/03/2012,Historic Property Restoration Ltd,20038023,"1,767.05",National Collections Group - Property Maintenance Programme,OPERATIONAL COSTS - Leased Accomodation Maint
78,DCMS,EH,14/03/2012,Historic Property Restoration Ltd,20038023,"54,717.63",National Collections Group - Property Maintenance Programme,OPERATIONAL COSTS - Planned Maintenance
79,DCMS,EH,14/03/2012,Historic Property Restoration Ltd,20038023,"17,757.14",National Collections Group - Property Maintenance Programme,OPERATIONAL COSTS - Responsive Repairs M & E
80,DCMS,EH,14/03/2012,Historic Property Restoration Ltd,20038023,"3,926.63",National Collections Group - Property Maintenance Programme,OPERATIONAL COSTS - Responsive Maint Building
81,DCMS,EH,14/03/2012,Historic Property Restoration Ltd,20038023,"17,203.96",National Collections Group - Property Maintenance Programme,OPERATIONAL COSTS - Responsive Maint Building
82,DCMS,EH,30/03/2012,Historic Property Restoration Ltd,20041490,"48,836.50",National Collections Group - Property Maintenance Programme,OPERATIONAL COSTS - Annual Cyclical Works-Building
83,DCMS,EH,30/03/2012,Historic Property Restoration Ltd,20041490,"10,354.55",National Collections Group - Property Maintenance Programme,OPERATIONAL COSTS - Annual Cyclical Works-Building
84,DCMS,EH,30/03/2012,Historic Property Restoration Ltd,20041490,"8,426.95",National Collections Group - Property Maintenance Programme,OPERATIONAL COSTS - Annual Cyclical Work M & E
85,DCMS,EH,30/03/2012,Historic Property Restoration Ltd,20041490,"3,964.53",National Collections Group - Property Maintenance Programme,OPERATIONAL COSTS - Annual Cyclical Work M & E
86,DCMS,EH,30/03/2012,Historic Property Restoration Ltd,20041491,"10,905.79",National Collections Group - Property Maintenance Programme,OPERATIONAL COSTS - Responsive Maint Building
87,DCMS,EH,30/03/2012,Historic Property Restoration Ltd,20041491,"2,004.18",National Collections Group - Property Maintenance Programme,OPERATIONAL COSTS - Responsive Maint Building
88,DCMS,EH,30/03/2012,Historic Property Restoration Ltd,20041491,35.03,National Collections Group - Property Maintenance Programme,OPERATIONAL COSTS - Planned Maintenance
89,DCMS,EH,30/03/2012,Historic Property Restoration Ltd,20041491,"4,373.26",National Collections Group - Property Maintenance Programme,OPERATIONAL COSTS - Planned Maintenance
90,DCMS,EH,30/03/2012,Historic Property Restoration Ltd,20041491,"10,719.80",National Collections Group - Property Maintenance Programme,OPERATIONAL COSTS - Responsive Repairs M & E
91,DCMS,EH,30/03/2012,Historic Property Restoration Ltd,20041985,"6,325.27",National Collections Group - Property Maintenance Programme,OPERATIONAL COSTS - Planned Maintenance
92,DCMS,EH,30/03/2012,Historic Property Restoration Ltd,20041985,"7,466.84",National Collections Group - Property Maintenance Programme,OPERATIONAL COSTS - Responsive Repairs M & E
93,DCMS,EH,30/03/2012,Historic Property Restoration Ltd,20041985,"10,564.63",National Collections Group - Property Maintenance Programme,OPERATIONAL COSTS - Responsive Maint Building
94,DCMS,EH,30/03/2012,Historic Property Restoration Ltd,20041985,"1,884.00",National Collections Group - Property Maintenance Programme,OPERATIONAL COSTS - Responsive Maint Building
95,DCMS,EH,30/03/2012,Historic Property Restoration Ltd,20042477,"2,849.87",National Collections Group - Property Maintenance Programme,OPERATIONAL COSTS - Leased Accomodation Maint
96,DCMS,EH,30/03/2012,Historic Property Restoration Ltd,20042477,"45,345.42",National Collections Group - Property Maintenance Programme,OPERATIONAL COSTS - Annual Cyclical Works-Building
97,DCMS,EH,30/03/2012,Historic Property Restoration Ltd,20042477,"5,426.12",National Collections Group - Property Maintenance Programme,OPERATIONAL COSTS - Annual Cyclical Work M & E
98,DCMS,EH,30/03/2012,Historic Property Restoration Ltd,20042477,"23,114.47",National Collections Group - Property Maintenance Programme,OPERATIONAL COSTS - Annual Cyclical Work M & E
99,DCMS,EH,30/03/2012,Historic Property Restoration Ltd,20042477,"11,399.00",National Collections Group - Property Maintenance Programme,OPERATIONAL COSTS - Annual Cyclical Works-Building
100,DCMS,EH,30/03/2012,Historic Property Restoration Ltd,20042547,"58,287.60",National Collections Group - Site Conservation Programme,OPERATIONAL COSTS - Fees for Professional Advice
101,DCMS,EH,30/03/2012,Historic Property Restoration Ltd,20042547,"11,021.90",National Collections Group - Site Conservation Programme,OPERATIONAL COSTS - Fees for Professional Advice
102,DCMS,EH,30/03/2012,Historic Property Restoration Ltd,20042547,"1,180.90",National Collections Group - Site Conservation Programme,OPERATIONAL COSTS - Fees for Professional Advice
103,DCMS,EH,30/03/2012,Historic Property Restoration Ltd,20042547,970.67,National Collections Group - Site Conservation Programme,OPERATIONAL COSTS - Fees for Professional Advice
104,DCMS,EH,14/03/2012,Mason Owen and Partners,20037868,"17,700.00",Resources Group - Operational Estates,RUNNING COSTS - Rent - Operating Leases
105,DCMS,EH,14/03/2012,Mason Owen and Partners,20037868,"9,773.70",Resources Group - Operational Estates,RUNNING COSTS - Building Service Charges
106,DCMS,EH,14/03/2012,Powis Hughes Ltd,20037881,"25,800.00",Resources Group - Operational Estates,OPERATIONAL COSTS - Fees for Professional Advice
107,DCMS,EH,20/03/2012,Greenwich Council,20039354,"41,347.00",National Collections Group - Historic Properties Department,RUNNING COSTS - Rates & CILOR
108,DCMS,EH,30/03/2012,ADT Fire and Security,20041657,"43,699.20",National Collections Group - Property Investment Programme,NET WIP MOVEMENT - WIP Refurb & Fitting Out
109,DCMS,EH,07/03/2012,Ratcliffes,20037410,"283,500.00",Resources Group - Operational Estates,RUNNING COSTS - Rent - Operating Leases
110,DCMS,EH,20/03/2012,Swindon Borough Council,20039331,"318,310.00",Resources Group - Operational Estates,RUNNING COSTS - Rates & CILOR
111,DCMS,EH,20/03/2012,Swindon Borough Council,20039331,"-254,648.00",Resources Group - Operational Estates,RUNNING COSTS - Rates Rebates
112,DCMS,EH,13/03/2012,Swets Information Services Ltd,20037982,"25,000.00",National Collections Group - Curatorial Department,RUNNING COSTS - Books & Publications
113,DCMS,EH,30/03/2012,Hewlett Packard International Bank Plc,20042263,"72,317.90",Resources Group - IMT Dept,RUNNING COSTS - Computer Operating Leases
114,DCMS,EH,30/03/2012,Hewlett Packard International Bank Plc,20042265,"55,863.38",Resources Group - IMT Dept,RUNNING COSTS - Computer Operating Leases
115,DCMS,EH,30/03/2012,Hewlett Packard International Bank Plc,20042268,"50,712.65",Resources Group - IMT Dept,RUNNING COSTS - Computer Operating Leases
116,DCMS,EH,30/03/2012,Hewlett Packard International Bank Plc,20042270,"45,050.10",Resources Group - IMT Dept,RUNNING COSTS - Computer Operating Leases
117,DCMS,EH,15/03/2012,EDF Energy,20035031,20.87,Resources Group - Human Resources Dept,RUNNING COSTS - Electricity
118,DCMS,EH,15/03/2012,EDF Energy,20035031,"25,965.52",Resources Group - Human Resources Dept,RUNNING COSTS - Electricity
119,DCMS,EH,27/03/2012,Thames Card Technology Ltd,20038700,"41,906.40",National Collections Group - Marketing Dept,SALES & PROMOTIONS - Promotional Material
120,DCMS,EH,30/03/2012,CBS Outdoor Ltd,20041082,"33,520.22",National Collections Group - Marketing Dept,SALES & PROMOTIONS - Advertising
121,DCMS,EH,21/03/2012,Archaeological Research Services,20037250,"30,000.00",Heritage Protection & Planning Group - Heritage Protection Department,ENABLING PROGRAMMES - Hist Environ Prog Projects Gra
122,DCMS,EH,27/03/2012,Archaeological Research Services,20039877,"27,000.00",Heritage Protection & Planning Group - Heritage Protection Department,ENABLING PROGRAMMES - Hist Environ Prog Projects Gra
123,DCMS,EH,30/03/2012,Korec,20040872,"56,112.00",Heritage Protection & Planning Group - Heritage Protection Department,NET FIXED ASSET EXPENDITURE - Plant & Equipment > 10k
124,DCMS,EH,27/03/2012,Archaeology Data Service,20039880,"35,000.00",Heritage Protection & Planning Group - Heritage Protection Department,ENABLING PROGRAMMES - Hist Environ Prog Projects Gra
125,DCMS,EH,14/03/2012,Prudential Property Investment  Managers,20038293,"55,303.25",Resources Group - Operational Estates,RUNNING COSTS - Rent - Operating Leases
126,DCMS,EH,14/03/2012,Prudential Property Investment  Managers,20038293,"29,226.00",Resources Group - Operational Estates,RUNNING COSTS - Building Service Charges
127,DCMS,EH,14/03/2012,Prudential Property Investment  Managers,20038294,"50,265.00",Resources Group - Operational Estates,RUNNING COSTS - Building Service Charges
128,DCMS,EH,14/03/2012,Prudential Property Investment  Managers,20038294,"186,401.50",Resources Group - Operational Estates,RUNNING COSTS - Rent - Operating Leases
129,DCMS,EH,14/03/2012,Prudential Property Investment  Managers,20038294,"27,000.00",Resources Group - Operational Estates,RUNNING COSTS - Building Service Charges
130,DCMS,EH,05/03/2012,Enterprise Rent A Car UK Ltd,20037418,"30,663.56",Resources Group - Corporate,RUNNING COSTS - Car Leasing
131,DCMS,EH,14/03/2012,NTL Group Ltd,20038590,"36,290.70",Resources Group - IMT Dept,RUNNING COSTS - Telephone & Telex
132,DCMS,EH,14/03/2012,NTL Group Ltd,20038590,12.97,Resources Group - IMT Dept,RUNNING COSTS - Telephone & Telex
133,DCMS,EH,30/03/2012,Click Netherfield Ltd,20040039,"49,672.80",National Collections Group - Property Investment Programme,NET WIP MOVEMENT - WIP Exhibitions & Displays
134,DCMS,EH,15/03/2012,Torex RBS Ltd,20038374,"42,111.71",Resources Group - IMT Dept,RUNNING COSTS - Software Maintenance
135,DCMS,EH,22/03/2012,Torex RBS Ltd,20038959,"1,584.00",Resources Group - IMT Dept,OTHER EXPENDITURE - System developments <50k
136,DCMS,EH,22/03/2012,Torex RBS Ltd,20038959,"2,016.00",Resources Group - IMT Dept,OTHER EXPENDITURE - System developments <50k
137,DCMS,EH,22/03/2012,Torex RBS Ltd,20038959,288,Resources Group - IMT Dept,OTHER EXPENDITURE - System developments <50k
138,DCMS,EH,22/03/2012,Torex RBS Ltd,20038959,"5,400.00",Resources Group - IMT Dept,OTHER EXPENDITURE - System developments <50k
139,DCMS,EH,22/03/2012,Torex RBS Ltd,20038959,480,Resources Group - IMT Dept,OTHER EXPENDITURE - System developments <50k
140,DCMS,EH,22/03/2012,Torex RBS Ltd,20038959,"20,088.00",Resources Group - IMT Dept,OTHER EXPENDITURE - System developments <50k
141,DCMS,EH,22/03/2012,Torex RBS Ltd,20038959,"5,760.00",Resources Group - IMT Dept,OTHER EXPENDITURE - System developments <50k
142,DCMS,EH,22/03/2012,Torex RBS Ltd,20038959,288,Resources Group - IMT Dept,OTHER EXPENDITURE - System developments <50k
143,DCMS,EH,22/03/2012,Torex RBS Ltd,20038959,360,Resources Group - IMT Dept,OTHER EXPENDITURE - System developments <50k
144,DCMS,EH,22/03/2012,Torex RBS Ltd,20038959,"2,520.00",Resources Group - IMT Dept,OTHER EXPENDITURE - System developments <50k
145,DCMS,EH,22/03/2012,Torex RBS Ltd,20038959,"5,688.00",Resources Group - IMT Dept,OTHER EXPENDITURE - System developments <50k
146,DCMS,EH,30/03/2012,Seazone Solutions Ltd,20041092,"35,359.58",Resources Group - IMT Dept,OTHER EXPENDITURE - Software Licences <10k
147,DCMS,EH,26/03/2012,Pace Fuelcare Ltd,20038407,"29,652.72",National Collections Group - Historic Properties Department,RUNNING COSTS - Gas & Oil
148,DCMS,EH,30/03/2012,Headland Archaeology (UK) Ltd,20040866,"3,600.00",National Collections Group - Site Conservation Programme,OPERATIONAL COSTS - Works for Heritage Buildings
149,DCMS,EH,30/03/2012,Headland Archaeology (UK) Ltd,20040866,"21,769.20",National Collections Group - Site Conservation Programme,OPERATIONAL COSTS - Works for Heritage Buildings
150,DCMS,EH,12/03/2012,High Peak Geotechnical Ltd,20037288,"4,440.00",National Collections Group - Property Maintenance Programme,OPERATIONAL COSTS - Annual Cyclical Works-Building
151,DCMS,EH,12/03/2012,High Peak Geotechnical Ltd,20037288,"4,080.00",National Collections Group - Property Maintenance Programme,OPERATIONAL COSTS - Annual Cyclical Work Grounds
152,DCMS,EH,12/03/2012,High Peak Geotechnical Ltd,20037288,"22,206.00",National Collections Group - Property Maintenance Programme,OPERATIONAL COSTS - Annual Cyclical Works-Building
153,DCMS,EH,30/03/2012,Willis Ltd,20041827,"95,048.89",National Collections Group - National Collections Centre,OTHER EXPENDITURE - Insurance
154,DCMS,EH,30/03/2012,Willis Ltd,20041827,"5,702.93",National Collections Group - National Collections Centre,OTHER EXPENDITURE - Insurance
155,DCMS,EH,12/03/2012,BJ Unwin Forestry Consultancy,20037600,540,National Collections Group - Property Maintenance Programme,OPERATIONAL COSTS - Annual Cyclical Work Grounds
156,DCMS,EH,12/03/2012,BJ Unwin Forestry Consultancy,20037600,540,National Collections Group - Property Maintenance Programme,OPERATIONAL COSTS - Annual Cyclical Work Grounds
157,DCMS,EH,12/03/2012,BJ Unwin Forestry Consultancy,20037600,540,National Collections Group - Property Maintenance Programme,OPERATIONAL COSTS - Annual Cyclical Work Grounds
158,DCMS,EH,12/03/2012,BJ Unwin Forestry Consultancy,20037600,480,National Collections Group - Property Maintenance Programme,OPERATIONAL COSTS - Annual Cyclical Work Grounds
159,DCMS,EH,12/03/2012,BJ Unwin Forestry Consultancy,20037600,480,National Collections Group - Property Maintenance Programme,OPERATIONAL COSTS - Annual Cyclical Work Grounds
160,DCMS,EH,12/03/2012,BJ Unwin Forestry Consultancy,20037600,480,National Collections Group - Property Maintenance Programme,OPERATIONAL COSTS - Annual Cyclical Work Grounds
161,DCMS,EH,12/03/2012,BJ Unwin Forestry Consultancy,20037600,480,National Collections Group - Property Maintenance Programme,OPERATIONAL COSTS - Annual Cyclical Work Grounds
162,DCMS,EH,12/03/2012,BJ Unwin Forestry Consultancy,20037600,480,National Collections Group - Property Maintenance Programme,OPERATIONAL COSTS - Annual Cyclical Work Grounds
163,DCMS,EH,12/03/2012,BJ Unwin Forestry Consultancy,20037600,480,National Collections Group - Property Maintenance Programme,OPERATIONAL COSTS - Annual Cyclical Work Grounds
164,DCMS,EH,12/03/2012,BJ Unwin Forestry Consultancy,20037600,480,National Collections Group - Property Maintenance Programme,OPERATIONAL COSTS - Annual Cyclical Work Grounds
165,DCMS,EH,12/03/2012,BJ Unwin Forestry Consultancy,20037600,480,National Collections Group - Property Maintenance Programme,OPERATIONAL COSTS - Annual Cyclical Work Grounds
166,DCMS,EH,12/03/2012,BJ Unwin Forestry Consultancy,20037600,480,National Collections Group - Property Maintenance Programme,OPERATIONAL COSTS - Annual Cyclical Work Grounds
167,DCMS,EH,12/03/2012,BJ Unwin Forestry Consultancy,20037600,480,National Collections Group - Property Maintenance Programme,OPERATIONAL COSTS - Annual Cyclical Work Grounds
168,DCMS,EH,12/03/2012,BJ Unwin Forestry Consultancy,20037600,330,National Collections Group - Property Maintenance Programme,OPERATIONAL COSTS - Annual Cyclical Work Grounds
169,DCMS,EH,12/03/2012,BJ Unwin Forestry Consultancy,20037600,480,National Collections Group - Property Maintenance Programme,OPERATIONAL COSTS - Annual Cyclical Work Grounds
170,DCMS,EH,12/03/2012,BJ Unwin Forestry Consultancy,20037600,480,National Collections Group - Property Maintenance Programme,OPERATIONAL COSTS - Annual Cyclical Work Grounds
171,DCMS,EH,12/03/2012,BJ Unwin Forestry Consultancy,20037600,330,National Collections Group - Property Maintenance Programme,OPERATIONAL COSTS - Annual Cyclical Work Grounds
172,DCMS,EH,12/03/2012,BJ Unwin Forestry Consultancy,20037600,330,National Collections Group - Property Maintenance Programme,OPERATIONAL COSTS - Annual Cyclical Work Grounds
173,DCMS,EH,12/03/2012,BJ Unwin Forestry Consultancy,20037600,330,National Collections Group - Property Maintenance Programme,OPERATIONAL COSTS - Annual Cyclical Work Grounds
174,DCMS,EH,12/03/2012,BJ Unwin Forestry Consultancy,20037600,330,National Collections Group - Property Maintenance Programme,OPERATIONAL COSTS - Annual Cyclical Work Grounds
175,DCMS,EH,12/03/2012,BJ Unwin Forestry Consultancy,20037600,540,National Collections Group - Property Maintenance Programme,OPERATIONAL COSTS - Annual Cyclical Work Grounds
176,DCMS,EH,12/03/2012,BJ Unwin Forestry Consultancy,20037600,540,National Collections Group - Property Maintenance Programme,OPERATIONAL COSTS - Annual Cyclical Work Grounds
177,DCMS,EH,12/03/2012,BJ Unwin Forestry Consultancy,20037600,720,National Collections Group - Property Maintenance Programme,OPERATIONAL COSTS - Annual Cyclical Work Grounds
178,DCMS,EH,12/03/2012,BJ Unwin Forestry Consultancy,20037600,720,National Collections Group - Property Maintenance Programme,OPERATIONAL COSTS - Annual Cyclical Work Grounds
179,DCMS,EH,12/03/2012,BJ Unwin Forestry Consultancy,20037600,720,National Collections Group - Property Maintenance Programme,OPERATIONAL COSTS - Annual Cyclical Work Grounds
180,DCMS,EH,12/03/2012,BJ Unwin Forestry Consultancy,20037600,720,National Collections Group - Property Maintenance Programme,OPERATIONAL COSTS - Annual Cyclical Work Grounds
181,DCMS,EH,12/03/2012,BJ Unwin Forestry Consultancy,20037600,720,National Collections Group - Property Maintenance Programme,OPERATIONAL COSTS - Annual Cyclical Work Grounds
182,DCMS,EH,12/03/2012,BJ Unwin Forestry Consultancy,20037600,"1,200.00",National Collections Group - Property Maintenance Programme,OPERATIONAL COSTS - Annual Cyclical Work Grounds
183,DCMS,EH,12/03/2012,BJ Unwin Forestry Consultancy,20037600,"1,800.00",National Collections Group - Property Maintenance Programme,OPERATIONAL COSTS - Annual Cyclical Work Grounds
184,DCMS,EH,12/03/2012,BJ Unwin Forestry Consultancy,20037600,"2,400.00",National Collections Group - Property Maintenance Programme,OPERATIONAL COSTS - Annual Cyclical Work Grounds
185,DCMS,EH,12/03/2012,BJ Unwin Forestry Consultancy,20037600,"3,891.00",National Collections Group - Property Maintenance Programme,OPERATIONAL COSTS - Annual Cyclical Work Grounds
186,DCMS,EH,12/03/2012,BJ Unwin Forestry Consultancy,20037600,300,National Collections Group - Property Maintenance Programme,OPERATIONAL COSTS - Annual Cyclical Work Grounds
187,DCMS,EH,12/03/2012,BJ Unwin Forestry Consultancy,20037600,300,National Collections Group - Property Maintenance Programme,OPERATIONAL COSTS - Annual Cyclical Work Grounds
188,DCMS,EH,12/03/2012,BJ Unwin Forestry Consultancy,20037600,300,National Collections Group - Property Maintenance Programme,OPERATIONAL COSTS - Annual Cyclical Work Grounds
189,DCMS,EH,12/03/2012,BJ Unwin Forestry Consultancy,20037600,300,National Collections Group - Property Maintenance Programme,OPERATIONAL COSTS - Annual Cyclical Work Grounds
190,DCMS,EH,12/03/2012,BJ Unwin Forestry Consultancy,20037600,300,National Collections Group - Property Maintenance Programme,OPERATIONAL COSTS - Annual Cyclical Work Grounds
191,DCMS,EH,12/03/2012,BJ Unwin Forestry Consultancy,20037600,300,National Collections Group - Property Maintenance Programme,OPERATIONAL COSTS - Annual Cyclical Work Grounds
192,DCMS,EH,12/03/2012,BJ Unwin Forestry Consultancy,20037600,300,National Collections Group - Property Maintenance Programme,OPERATIONAL COSTS - Annual Cyclical Work Grounds
193,DCMS,EH,12/03/2012,BJ Unwin Forestry Consultancy,20037600,300,National Collections Group - Property Maintenance Programme,OPERATIONAL COSTS - Annual Cyclical Work Grounds
194,DCMS,EH,12/03/2012,BJ Unwin Forestry Consultancy,20037600,300,National Collections Group - Property Maintenance Programme,OPERATIONAL COSTS - Annual Cyclical Work Grounds
195,DCMS,EH,12/03/2012,BJ Unwin Forestry Consultancy,20037600,300,National Collections Group - Property Maintenance Programme,OPERATIONAL COSTS - Annual Cyclical Work Grounds
196,DCMS,EH,12/03/2012,BJ Unwin Forestry Consultancy,20037600,300,National Collections Group - Property Maintenance Programme,OPERATIONAL COSTS - Annual Cyclical Work Grounds
197,DCMS,EH,12/03/2012,BJ Unwin Forestry Consultancy,20037600,300,National Collections Group - Property Maintenance Programme,OPERATIONAL COSTS - Annual Cyclical Work Grounds
198,DCMS,EH,12/03/2012,BJ Unwin Forestry Consultancy,20037600,300,National Collections Group - Property Maintenance Programme,OPERATIONAL COSTS - Annual Cyclical Work Grounds
199,DCMS,EH,30/03/2012,Seven,20040666,"48,000.00",National Collections Group - Marketing Dept,SALES & PROMOTIONS - Promotional Material
200,DCMS,EH,30/03/2012,Seven,20040667,"72,000.00",National Collections Group - Marketing Dept,SALES & PROMOTIONS - Promotional Material
201,DCMS,EH,30/03/2012,Seven,20040668,"48,000.00",National Collections Group - Marketing Dept,SALES & PROMOTIONS - Promotional Material
202,DCMS,EH,30/03/2012,Seven,20040669,"264,000.00",National Collections Group - Marketing Dept,SALES & PROMOTIONS - Promotional Material
203,DCMS,EH,30/03/2012,Seven,20041654,"320,400.00",National Collections Group - Marketing Dept,SALES & PROMOTIONS - Promotional Material
204,DCMS,EH,01/03/2012,Hewlett Packard Ltd,20036820,"27,582.17",Resources Group - IMT Dept,OTHER EXPENDITURE - Computer Equipment <10k
205,DCMS,EH,30/03/2012,Pearce Const Barnstaple Ltd,20041929,"27,111.91",National Collections Group - Property Investment Programme,NET WIP MOVEMENT - WIP Operational Building Works
206,DCMS,EH,07/03/2012,C G Godfrey Ltd,20037094,"59,359.95",National Collections Group - Property Maintenance Programme,OPERATIONAL COSTS - Planned Maintenance
207,DCMS,EH,27/03/2012,C G Godfrey Ltd,20040242,"33,318.75",National Collections Group - Property Maintenance Programme,OPERATIONAL COSTS - Planned Maintenance
208,DCMS,EH,29/02/2012,BRB Residuary Ltd,20036763,"22,747.50",Resources Group - Operational Estates,RUNNING COSTS - Rent - Operating Leases
209,DCMS,EH,29/02/2012,BRB Residuary Ltd,20036763,"8,827.80",Resources Group - Operational Estates,RUNNING COSTS - Building Service Charges
210,DCMS,EH,07/03/2012,Coulson Group Ltd,20036388,"92,138.60",National Collections Group - Property Investment Programme,NET WIP MOVEMENT - WIP Refurb & Fitting Out
211,DCMS,EH,30/03/2012,Coulson Group Ltd,20041138,"228,394.09",National Collections Group - Property Investment Programme,NET WIP MOVEMENT - WIP Refurb & Fitting Out
212,DCMS,EH,30/03/2012,Evolve Business Consultancy Ltd,20040987,"26,010.92",Heritage Protection & Planning Group - Designation Dept,RUNNING COSTS - Licences
213,DCMS,EH,19/03/2012,Tribal Education Ltd,20038551,"52,816.87",Resources Group - IMT Dept,RUNNING COSTS - Software Maintenance
214,DCMS,EH,30/03/2012,Robert Woodhead Ltd,20041807,"34,292.37",National Collections Group - Property Investment Programme,OPERATIONAL COSTS - Works for Heritage Buildings
215,DCMS,EH,20/03/2012,Digirati Ltd,20038699,"28,980.00",National Advice & Information Group - Communications Department,OTHER EXPENDITURE - System developments <50k
216,DCMS,EH,29/03/2012,Landmark Information Group Ltd,20040330,"98,400.00",Heritage Protection & Planning Group - Heritage Protection Department,RUNNING COSTS - Corporate subscriptions
217,DCMS,EH,21/03/2012,Bivouac Limited,20038973,"39,942.48",National Collections Group - Property Investment Programme,SALES & PROMOTIONS - Exhibits/Displays
218,DCMS,EH,29/03/2012,Quadron Services Ltd,20040835,"7,005.34",National Collections Group - Property Maintenance Programme,OPERATIONAL COSTS - Annual Cyclical Works-Building
219,DCMS,EH,29/03/2012,Quadron Services Ltd,20040835,"13,635.70",National Collections Group - Property Maintenance Programme,OPERATIONAL COSTS - Annual Cyclical Works-Building
220,DCMS,EH,29/03/2012,Quadron Services Ltd,20040835,"9,078.42",National Collections Group - Property Maintenance Programme,OPERATIONAL COSTS - Annual Cyclical Works-Building
221,DCMS,EH,30/03/2012,SoftwareOne UK Ltd,20042343,"13,440.00",Resources Group - IMT Dept,NET FIXED ASSET EXPENDITURE - Software Licences > 10k
222,DCMS,EH,30/03/2012,SoftwareOne UK Ltd,20042343,"7,150.66",Resources Group - IMT Dept,NET FIXED ASSET EXPENDITURE - Software Licences > 10k
223,DCMS,EH,30/03/2012,SoftwareOne UK Ltd,20042343,"8,766.96",Resources Group - IMT Dept,NET FIXED ASSET EXPENDITURE - Software Licences > 10k
224,DCMS,EH,30/03/2012,SoftwareOne UK Ltd,20042343,"13,396.32",Resources Group - IMT Dept,NET FIXED ASSET EXPENDITURE - Software Licences > 10k
225,DCMS,EH,13/03/2012,Carden & Godfrey Architects,20037539,"24,000.00",National Collections Group - Property Investment Programme,NET WIP MOVEMENT - WIP Professional Works Advice
226,DCMS,EH,13/03/2012,Carden & Godfrey Architects,20037539,"1,800.00",National Collections Group - Property Investment Programme,NET WIP MOVEMENT - WIP Professional Works Advice
227,DCMS,EH,30/03/2012,Ian Clark Restoration,20040284,"26,084.40",National Collections Group - Property Maintenance Programme,OPERATIONAL COSTS - Planned Maintenance
228,DCMS,EH,28/03/2012,HFS Environmental Ltd,20040259,"43,200.00",National Collections Group - Property Maintenance Programme,OPERATIONAL COSTS - Annual Cyclical Works-Building
229,DCMS,EH,30/03/2012,E A Chiverton Ltd,20039978,"40,122.35",Resources Group - Operational Estates,OPERATIONAL COSTS - Planned Maintenance
230,DCMS,EH,30/03/2012,E A Chiverton Ltd,20041694,"35,524.31",Resources Group - Operational Estates,OPERATIONAL COSTS - Planned Maintenance
231,DCMS,EH,30/03/2012,E A Chiverton Ltd,20041698,"34,801.20",Resources Group - Operational Estates,OPERATIONAL COSTS - Planned Maintenance
232,DCMS,EH,01/03/2012,Elliott Baxter & Company Ltd,20035671,"3,663.60",National Collections Group - Marketing Dept,SALES & PROMOTIONS - Promotional Material
233,DCMS,EH,01/03/2012,Elliott Baxter & Company Ltd,20035671,912,National Collections Group - Marketing Dept,SALES & PROMOTIONS - Promotional Material
234,DCMS,EH,01/03/2012,Elliott Baxter & Company Ltd,20035671,715.2,National Collections Group - Marketing Dept,SALES & PROMOTIONS - Promotional Material
235,DCMS,EH,01/03/2012,Elliott Baxter & Company Ltd,20035671,"8,154.82",National Collections Group - Marketing Dept,SALES & PROMOTIONS - Promotional Material
236,DCMS,EH,01/03/2012,Elliott Baxter & Company Ltd,20035671,"5,910.00",National Collections Group - Marketing Dept,SALES & PROMOTIONS - Promotional Material
237,DCMS,EH,01/03/2012,Elliott Baxter & Company Ltd,20035671,"13,930.80",National Collections Group - Marketing Dept,SALES & PROMOTIONS - Promotional Material
238,DCMS,EH,01/03/2012,Elliott Baxter & Company Ltd,20035671,"4,506.00",National Collections Group - Marketing Dept,SALES & PROMOTIONS - Promotional Material
239,DCMS,EH,01/03/2012,Elliott Baxter & Company Ltd,20035671,"19,430.40",National Collections Group - Marketing Dept,SALES & PROMOTIONS - Promotional Material
240,DCMS,EH,01/03/2012,Elliott Baxter & Company Ltd,20035671,"1,812.00",National Collections Group - Marketing Dept,SALES & PROMOTIONS - Promotional Material
241,DCMS,EH,19/03/2012,Capita Secure Information Systems Ltd,20038563,"198,917.70",Resources Group - IMT Dept,RUNNING COSTS - ITFM
242,DCMS,EH,19/03/2012,Capita Secure Information Systems Ltd,20038649,"39,967.12",Resources Group - IMT Dept,OTHER EXPENDITURE - Computer Equipment <10k
243,DCMS,EH,19/03/2012,Capita Secure Information Systems Ltd,20038650,"98,622.70",Resources Group - IMT Dept,RUNNING COSTS - Software Maintenance
244,DCMS,EH,26/03/2012,Capita Secure Information Systems Ltd,20038920,"2,452.80",Resources Group - IMT Dept,OTHER EXPENDITURE - System developments <50k
245,DCMS,EH,26/03/2012,Capita Secure Information Systems Ltd,20038920,"25,497.60",Resources Group - IMT Dept,NET FIXED ASSET EXPENDITURE - Software Licences > 10k
246,DCMS,EH,27/03/2012,Capita Secure Information Systems Ltd,20039640,"26,735.00",Resources Group - IMT Dept,OTHER EXPENDITURE - Computer Equipment <10k
247,DCMS,EH,30/03/2012,Capita Secure Information Systems Ltd,20039876,"119,350.62",Resources Group - IMT Dept,RUNNING COSTS - ITFM
248,DCMS,EH,27/03/2012,Capita Secure Information Systems Ltd,20039960,"16,800.00",Resources Group - Human Resources Dept,RUNNING COSTS - Intranet Development
249,DCMS,EH,27/03/2012,Capita Secure Information Systems Ltd,20039960,"6,000.00",Resources Group - Human Resources Dept,RUNNING COSTS - Intranet Development
250,DCMS,EH,27/03/2012,Capita Secure Information Systems Ltd,20039960,"6,000.00",Resources Group - Human Resources Dept,RUNNING COSTS - Intranet Development
251,DCMS,EH,28/03/2012,Capita Secure Information Systems Ltd,20040447,"271,397.68",Resources Group - IMT Dept,RUNNING COSTS - ITFM
252,DCMS,EH,28/03/2012,Capita Secure Information Systems Ltd,20040448,"271,397.68",Resources Group - IMT Dept,RUNNING COSTS - ITFM
253,DCMS,EH,29/03/2012,Capita Secure Information Systems Ltd,20040808,"44,339.15",Resources Group - Human Resources Dept,RUNNING COSTS - Intranet Development
254,DCMS,EH,29/03/2012,Capita Secure Information Systems Ltd,20040808,"7,012.99",Resources Group - Human Resources Dept,RUNNING COSTS - Intranet Development
255,DCMS,EH,30/03/2012,Capita Secure Information Systems Ltd,20041221,"30,131.65",Resources Group - IMT Dept,OTHER EXPENDITURE - Computer Equipment <10k
256,DCMS,EH,30/03/2012,Capita Secure Information Systems Ltd,20041508,"25,344.14",Resources Group - IMT Dept,OTHER EXPENDITURE - Computer Equipment <10k
257,DCMS,EH,30/03/2012,Capita Secure Information Systems Ltd,20041712,"30,000.00",Resources Group - IMT Dept,OTHER EXPENDITURE - Computer Equipment <10k
258,DCMS,EH,05/03/2012,English Landscapes Ltd,20036789,"48,788.00",National Collections Group - Property Investment Programme,NET WIP MOVEMENT - WIP Landscape Works
259,DCMS,EH,09/03/2012,Front Ideas Ltd,20036166,"18,000.00",National Collections Group - Marketing Dept,SALES & PROMOTIONS - Advertising
260,DCMS,EH,09/03/2012,Front Ideas Ltd,20036166,"12,000.00",National Collections Group - Marketing Dept,SALES & PROMOTIONS - Advertising
261,DCMS,EH,09/03/2012,Front Ideas Ltd,20036166,"18,000.00",National Collections Group - Marketing Dept,SALES & PROMOTIONS - Advertising
262,DCMS,EH,30/03/2012,Chase Fencing Supplies,20041571,"31,008.00",National Collections Group - Property Maintenance Programme,OPERATIONAL COSTS - Materials
263,DCMS,EH,30/03/2012,MAST ICT Limited,20041211,"27,000.00",National Advice & Information Group - Communications Department,OTHER EXPENDITURE - System developments <50k
264,DCMS,EH,30/03/2012,MAST ICT Limited,20041211,"1,800.00",National Collections Group - Marketing Dept,RUNNING COSTS - Travel
265,DCMS,EH,30/03/2012,MAST ICT Limited,20041211,"14,400.00",National Advice & Information Group - Communications Department,OTHER EXPENDITURE - System developments <50k
266,DCMS,EH,20/03/2012,LB Camden - Business Rates,20039349,"654,860.00",Resources Group - Operational Estates,RUNNING COSTS - Rates & CILOR
267,DCMS,EH,30/03/2012,Wyndeham Web Ltd,20040096,"22,270.56",National Collections Group - Marketing Dept,SALES & PROMOTIONS - Promotional Material
268,DCMS,EH,30/03/2012,Wyndeham Web Ltd,20040096,"3,015.40",National Collections Group - Marketing Dept,SALES & PROMOTIONS - Promotional Material
269,DCMS,EH,30/03/2012,Shoosmiths,20042729,"41,094.96",Heritage Protection & Planning Group - National Planning Department,RUNNING COSTS - Legal fees
270,DCMS,EH,21/03/2012,Leach Colour,20038896,"35,206.50",National Collections Group - Property Investment Programme,NET WIP MOVEMENT - WIP Exhibitions & Displays
271,DCMS,EH,12/03/2012,MGM Ltd,20037889,"88,164.07",National Collections Group - Property Investment Programme,OPERATIONAL COSTS - Works for Heritage Buildings
272,DCMS,EH,30/03/2012,MGM Ltd,20042052,"60,199.16",National Collections Group - Property Investment Programme,NET WIP MOVEMENT - WIP Refurb & Fitting Out
273,DCMS,EH,30/03/2012,MGM Ltd,20042052,"22,419.00",National Collections Group - Property Investment Programme,NET WIP MOVEMENT - WIP Refurb & Fitting Out
274,DCMS,EH,30/03/2012,MGM Ltd,20042052,"37,200.00",National Collections Group - Property Investment Programme,OPERATIONAL COSTS - Works for Heritage Buildings
275,DCMS,EH,30/03/2012,Universal Stone Limited,20039247,"32,903.90",National Collections Group - Site Conservation Programme,OPERATIONAL COSTS - Works for Heritage Buildings
276,DCMS,EH,01/03/2012,Skanska Rashleigh Weatherfoil Ltd,20036677,"44,379.60",National Collections Group - Curatorial Department,OPERATIONAL COSTS - Planned Maintenance
277,DCMS,EH,21/03/2012,Skanska Rashleigh Weatherfoil Ltd,20039198,"65,707.20",National Collections Group - Curatorial Department,OPERATIONAL COSTS - Planned Maintenance
278,DCMS,EH,30/03/2012,Skanska Rashleigh Weatherfoil Ltd,20042099,"386,013.60",National Collections Group - Curatorial Department,NET WIP MOVEMENT - WIP Operational Building Works
279,DCMS,EH,22/03/2012,The Fencing Partnership Ltd,20038964,"44,817.35",National Collections Group - Property Investment Programme,NET WIP MOVEMENT - WIP Refurb & Fitting Out
280,DCMS,EH,22/03/2012,The Fencing Partnership Ltd,20038964,"6,853.53",National Collections Group - Property Investment Programme,NET WIP MOVEMENT - WIP Refurb & Fitting Out
281,DCMS,EH,30/03/2012,E W Beard Limited,20041758,"27,600.00",National Collections Group - Property Maintenance Programme,OPERATIONAL COSTS - Planned Maintenance
282,DCMS,EH,29/03/2012,G.J. Banks (I.W.) Ltd,20040847,"26,081.77",National Collections Group - Property Maintenance Programme,OPERATIONAL COSTS - Planned Maintenance
283,DCMS,EH,21/03/2012,AMS Engineering,20038669,"30,483.60",National Collections Group - Property Investment Programme,NET WIP MOVEMENT - WIP Refurb & Fitting Out
284,DCMS,EH,07/03/2012,Thomas Vale Construction Plc,20036790,"136,800.00",Heritage Protection & Planning Group - National Planning Department,OPERATIONAL COSTS - Commissioned architects
285,DCMS,EH,14/03/2012,Thomas Vale Construction Plc,20037977,"142,500.00",Heritage Protection & Planning Group - National Planning Department,OPERATIONAL COSTS - Commissioned architects
286,DCMS,EH,27/03/2012,Thomas Vale Construction Plc,20040029,"15,960.00",Heritage Protection & Planning Group - National Planning Department,OPERATIONAL COSTS - Commissioned architects
287,DCMS,EH,27/03/2012,Thomas Vale Construction Plc,20040029,"27,360.00",Heritage Protection & Planning Group - National Planning Department,OPERATIONAL COSTS - Commissioned architects
288,DCMS,EH,27/03/2012,Thomas Vale Construction Plc,20040029,"156,180.00",Heritage Protection & Planning Group - National Planning Department,OPERATIONAL COSTS - Commissioned architects
289,DCMS,EH,27/03/2012,Thomas Vale Construction Plc,20040029,"28,500.00",Heritage Protection & Planning Group - National Planning Department,OPERATIONAL COSTS - Commissioned architects
290,DCMS,EH,30/03/2012,Thomas Vale Construction Plc,20040788,"124,800.00",Heritage Protection & Planning Group - National Planning Department,OPERATIONAL COSTS - Commissioned architects
291,DCMS,EH,30/03/2012,Thomas Vale Construction Plc,20040788,"8,100.00",Heritage Protection & Planning Group - National Planning Department,OPERATIONAL COSTS - Commissioned architects
292,DCMS,EH,30/03/2012,Kee Process Limited,20042396,"37,179.10",National Collections Group - Property Maintenance Programme,OPERATIONAL COSTS - Planned Maintenance
293,DCMS,EH,20/03/2012,Ace General Engineering (Cornwall) Ltd,20037979,"26,724.42",National Collections Group - Property Maintenance Programme,OPERATIONAL COSTS - Planned Maintenance
294,DCMS,EH,27/03/2012,Sturgeon's,20040143,"93,279.26",National Collections Group - Property Maintenance Programme,OPERATIONAL COSTS - Planned Maintenance
295,DCMS,EH,30/03/2012,T H White Limited,20038561,"34,000.80",National Collections Group - Property Investment Programme,OPERATIONAL COSTS - Plant Equip & Van Costs
296,DCMS,EH,23/03/2012,Harlow Property Management Ltd,20039484,"54,750.00",Resources Group - Operational Estates,RUNNING COSTS - Rent - Operating Leases
297,DCMS,EH,30/03/2012,Interserve Construction Ltd,20040581,"57,600.00",National Collections Group - Property Investment Programme,NET WIP MOVEMENT - WIP Operational Building Works
298,DCMS,EH,30/03/2012,Interserve Construction Ltd,20040581,600,National Collections Group - Property Investment Programme,NET WIP MOVEMENT - WIP Operational Building Works
299,DCMS,EH,12/03/2012,Specialist Computer Centres plc,20037994,"65,256.16",Resources Group - Finance & Procurement Department,NET FIXED ASSET EXPENDITURE - Software Licences > 10k
300,DCMS,EH,27/03/2012,Specialist Computer Centres plc,20038449,"70,153.36",Resources Group - IMT Dept,NET FIXED ASSET EXPENDITURE - Software Licences > 10k
301,DCMS,EH,27/03/2012,Specialist Computer Centres plc,20038449,"16,601.14",Resources Group - IMT Dept,RUNNING COSTS - Software Maintenance
302,DCMS,EH,28/03/2012,Specialist Computer Centres plc,20038901,"554,688.00",Resources Group - IMT Dept,NET WIP MOVEMENT - WIP Asset Purch Over 10k
303,DCMS,EH,30/03/2012,Specialist Computer Centres plc,20042356,"2,740.58",Resources Group - IMT Dept,NET WIP MOVEMENT - WIP Asset Purch Under 10k
304,DCMS,EH,30/03/2012,Specialist Computer Centres plc,20042356,981.12,Resources Group - IMT Dept,NET WIP MOVEMENT - WIP Asset Purch Under 10k
305,DCMS,EH,30/03/2012,Specialist Computer Centres plc,20042356,60,Resources Group - IMT Dept,NET WIP MOVEMENT - WIP Asset Purch Under 10k
306,DCMS,EH,30/03/2012,Specialist Computer Centres plc,20042356,"142,504.75",Resources Group - IMT Dept,NET WIP MOVEMENT - WIP Asset Purch Under 10k
307,DCMS,EH,30/03/2012,Specialist Computer Centres plc,20042356,822.17,Resources Group - IMT Dept,NET WIP MOVEMENT - WIP Asset Purch Under 10k
308,DCMS,EH,30/03/2012,Specialist Computer Centres plc,20042356,"9,041.17",Resources Group - IMT Dept,NET WIP MOVEMENT - WIP Asset Purch Under 10k
309,DCMS,EH,30/03/2012,Specialist Computer Centres plc,20042356,"15,341.76",Resources Group - IMT Dept,NET WIP MOVEMENT - WIP Asset Purch Under 10k
310,DCMS,EH,30/03/2012,Specialist Computer Centres plc,20042357,"3,300.96",Resources Group - IMT Dept,OTHER EXPENDITURE - Computer Equipment <10k
311,DCMS,EH,30/03/2012,Specialist Computer Centres plc,20042357,"119,896.20",Resources Group - IMT Dept,OTHER EXPENDITURE - Computer Equipment <10k
312,DCMS,EH,30/03/2012,Specialist Computer Centres plc,20042357,217.26,Resources Group - IMT Dept,OTHER EXPENDITURE - Computer Equipment <10k
313,DCMS,EH,30/03/2012,Specialist Computer Centres plc,20042358,"49,790.02",Resources Group - IMT Dept,OTHER EXPENDITURE - Computer Equipment <10k
314,DCMS,EH,30/03/2012,Specialist Computer Centres plc,20042362,"15,647.28",Resources Group - IMT Dept,OTHER EXPENDITURE - Computer Equipment <10k
315,DCMS,EH,30/03/2012,Specialist Computer Centres plc,20042362,"61,718.23",Resources Group - IMT Dept,OTHER EXPENDITURE - Computer Equipment <10k
316,DCMS,EH,30/03/2012,Specialist Computer Centres plc,20042363,"51,532.20",Resources Group - IMT Dept,OTHER EXPENDITURE - Computer Equipment <10k
317,DCMS,EH,30/03/2012,Specialist Computer Centres plc,20042364,"54,890.40",Resources Group - IMT Dept,OTHER EXPENDITURE - System developments <50k
318,DCMS,EH,30/03/2012,Specialist Computer Centres plc,20042365,"3,522.82",Resources Group - IMT Dept,OTHER EXPENDITURE - Computer Equipment <10k
319,DCMS,EH,30/03/2012,Specialist Computer Centres plc,20042365,"56,283.48",Resources Group - IMT Dept,OTHER EXPENDITURE - Computer Equipment <10k
320,DCMS,EH,30/03/2012,Specialist Computer Centres plc,20042365,"6,233.28",Resources Group - IMT Dept,OTHER EXPENDITURE - Computer Equipment <10k
321,DCMS,EH,30/03/2012,Specialist Computer Centres plc,20042365,"14,829.12",Resources Group - IMT Dept,OTHER EXPENDITURE - Computer Equipment <10k
322,DCMS,EH,30/03/2012,Specialist Computer Centres plc,20042365,"8,591.04",Resources Group - IMT Dept,OTHER EXPENDITURE - Computer Equipment <10k
323,DCMS,EH,30/03/2012,Specialist Computer Centres plc,20042365,"55,405.68",Resources Group - IMT Dept,OTHER EXPENDITURE - Computer Equipment <10k
324,DCMS,EH,30/03/2012,Specialist Computer Centres plc,20042366,"66,226.08",Resources Group - IMT Dept,OTHER EXPENDITURE - Computer Equipment <10k
325,DCMS,EH,30/03/2012,Specialist Computer Centres plc,20042398,"-41,016.89",Resources Group - IMT Dept,NET WIP MOVEMENT - WIP Asset Purch Over 10k
326,DCMS,EH,30/03/2012,Russell Trew Limited,20042335,"34,979.40",National Collections Group - Property Maintenance Programme,OPERATIONAL COSTS - Leased Accomodation Maint
327,DCMS,EH,30/03/2012,P & I Generators Ltd,20041602,"64,122.00",Resources Group - Human Resources Dept,RUNNING COSTS - Repairs to Offices
328,DCMS,EH,29/03/2012,Christie Manson & Woods Ltd,20040862,"30,000.00",National Collections Group - Curatorial Department,NET FIXED ASSET EXPENDITURE - Artefacts & Archives > 10k
329,DCMS,EH,22/03/2012,Southern Electric Power Distribution PLC,20039767,"84,268.50",National Collections Group - Property Investment Programme,NET WIP MOVEMENT - WIP Operational Building Works
330,DCMS,EH,30/03/2012,Enterprise Rent A Car UK Ltd,20041811,"35,594.91",Resources Group - Corporate,RUNNING COSTS - Car Leasing
331,DCMS,EH,14/03/2012,The National Trust Wiltshire,90512951,"267,655.00",Heritage Protection & Planning Group - National Planning Department,GRANTS PAYABLE - OTHER GRANTS
332,DCMS,EH,23/03/2012,The Architectural Heritage Fund,90513117,"1,000,000.00",Heritage Protection & Planning Group - National Planning Department,GRANTS PAYABLE - HISTORIC BUILDINGS
333,DCMS,EH,09/03/2012,Gloucestershire County Council,90512916,"33,750.00",Heritage Protection & Planning Group - National Planning Department,GRANTS PAYABLE - HISTORIC BUILDINGS
334,DCMS,EH,28/03/2012,Wedgwood Museum Trading Ltd,90513189,"48,760.00",Heritage Protection & Planning Group - National Planning Department,GRANTS PAYABLE - OTHER GRANTS
335,DCMS,EH,28/03/2012,Council for British Archaeology,90513201,"162,000.00",Heritage Protection & Planning Group - National Planning Department,GRANTS PAYABLE - OTHER GRANTS
336,DCMS,EH,05/03/2012,Great Yarmouth Borough Council,90512887,"75,000.00",Heritage Protection & Planning Group - National Planning Department,GRANTS PAYABLE - HISTORIC BUILDINGS
337,DCMS,EH,21/03/2012,Great Yarmouth Borough Council,90513036,"40,000.00",Heritage Protection & Planning Group - National Planning Department,GRANTS PAYABLE - HISTORIC BUILDINGS
338,DCMS,EH,26/03/2012,York City Council,90513122,"25,000.00",Heritage Protection & Planning Group - National Planning Department,GRANTS PAYABLE - OTHER GRANTS
339,DCMS,EH,26/03/2012,Cambridgeshire County Council,90513155,"9,805.00",Heritage Protection & Planning Group - National Planning Department,GRANTS PAYABLE - OTHER GRANTS
340,DCMS,EH,26/03/2012,Cambridgeshire County Council,90513155,"25,000.00",Heritage Protection & Planning Group - National Planning Department,GRANTS PAYABLE - OTHER GRANTS
341,DCMS,EH,14/03/2012,London Borough Of Tower Hamlets,90512977,"169,067.00",Heritage Protection & Planning Group - National Planning Department,GRANTS PAYABLE - AREA
342,DCMS,EH,14/03/2012,London Borough Of Tower Hamlets,90512978,"65,295.00",Heritage Protection & Planning Group - National Planning Department,GRANTS PAYABLE - AREA
343,DCMS,EH,14/03/2012,London Borough Of Tower Hamlets,90512979,"132,688.00",Heritage Protection & Planning Group - National Planning Department,GRANTS PAYABLE - AREA
344,DCMS,EH,07/03/2012,Council Of The Isles Of Scilly,90512899,"27,469.63",Heritage Protection & Planning Group - National Planning Department,GRANTS PAYABLE - AREA
345,DCMS,EH,28/03/2012,Council for British Archaeology,90513202,"45,000.00",Heritage Protection & Planning Group - National Planning Department,GRANTS PAYABLE - OTHER GRANTS
346,DCMS,EH,28/03/2012,Council for British Archaeology,90513202,"28,000.00",Heritage Protection & Planning Group - National Planning Department,GRANTS PAYABLE - OTHER GRANTS
347,DCMS,EH,28/03/2012,Soc for Protect of Ancient Bldgs,90513203,"25,500.00",Heritage Protection & Planning Group - National Planning Department,GRANTS PAYABLE - OTHER GRANTS
348,DCMS,EH,16/03/2012,Prince's Regeneration Trust,90512991,"30,000.00",Heritage Protection & Planning Group - National Planning Department,GRANTS PAYABLE - OTHER GRANTS
349,DCMS,EH,05/03/2012,The Architectural Heritage Fund,90512881,"52,966.00",Heritage Protection & Planning Group - National Planning Department,GRANTS PAYABLE - OTHER GRANTS
350,DCMS,EH,16/03/2012,The Architectural Heritage Fund,90512992,"90,000.00",Heritage Protection & Planning Group - National Planning Department,GRANTS PAYABLE - OTHER GRANTS
351,DCMS,EH,16/03/2012,The Architectural Heritage Fund,90512993,"210,000.00",Heritage Protection & Planning Group - National Planning Department,GRANTS PAYABLE - OTHER GRANTS
352,DCMS,EH,23/03/2012,The Architectural Heritage Fund,90513118,"1,000,000.00",Heritage Protection & Planning Group - National Planning Department,GRANTS PAYABLE - OTHER GRANTS
353,DCMS,EH,28/03/2012,War Memorials Trust,90513200,"220,000.00",Heritage Protection & Planning Group - National Planning Department,GRANTS PAYABLE - OTHER GRANTS
354,DCMS,EH,05/03/2012,Heritage Link,90512882,"33,010.00",Heritage Protection & Planning Group - National Planning Department,GRANTS PAYABLE - OTHER GRANTS
355,DCMS,EH,28/03/2012,Oxford Archaeology East,81001994,"29,147.09",Heritage Protection & Planning Group - Heritage Protection Department,ENABLING PROGRAMMES - Historic Environ Prog Grants
356,DCMS,EH,16/03/2012,Sheffield City Council,90512988,"28,000.00",Heritage Protection & Planning Group - National Planning Department,GRANTS PAYABLE - HISTORIC BUILDINGS
357,DCMS,EH,28/03/2012,Civic Voice,81002040,"28,000.00",Heritage Protection & Planning Group - Heritage Protection Department,ENABLING PROGRAMMES - Historic Environ Prog Grants
358,DCMS,EH,28/03/2012,The British Museum,81002037,"35,000.00",Heritage Protection & Planning Group - Heritage Protection Department,ENABLING PROGRAMMES - Historic Environ Prog Grants
359,DCMS,EH,13/03/2012,Humber Archaeology Partnership,81001911,"30,000.00",Heritage Protection & Planning Group - Heritage Protection Department,ENABLING PROGRAMMES - Historic Environ Prog Grants
360,DCMS,EH,20/03/2012,Humber Archaeology Partnership,81001946,"27,500.00",Heritage Protection & Planning Group - Heritage Protection Department,ENABLING PROGRAMMES - Historic Environ Prog Grants
361,DCMS,EH,07/03/2012,West Yorkshire Archaeology Service,81001872,"33,500.00",Heritage Protection & Planning Group - Heritage Protection Department,ENABLING PROGRAMMES - Historic Environ Prog Grants
362,DCMS,EH,20/03/2012,Cheshire West and Chester Council,81001971,"30,000.00",Heritage Protection & Planning Group - Heritage Protection Department,ENABLING PROGRAMMES - Historic Environ Prog Grants
363,DCMS,EH,07/03/2012,Historic Environment Service,81001887,"26,025.58",Heritage Protection & Planning Group - Heritage Protection Department,ENABLING PROGRAMMES - Historic Environ Prog Grants
364,DCMS,EH,13/03/2012,Cotswold Archaeology,81001915,"76,000.00",Heritage Protection & Planning Group - Heritage Protection Department,ENABLING PROGRAMMES - Historic Environ Prog Grants
365,DCMS,EH,28/03/2012,Oxfordshire County Council,81002007,"31,000.00",Heritage Protection & Planning Group - Heritage Protection Department,ENABLING PROGRAMMES - Historic Environ Prog Grants
366,DCMS,EH,20/03/2012,Worcestershire County Council,81001984,"31,839.90",Heritage Protection & Planning Group - Heritage Protection Department,ENABLING PROGRAMMES - Historic Environ Prog Grants
367,DCMS,EH,20/03/2012,Suffolk County Council,81001960,"39,000.00",Heritage Protection & Planning Group - Heritage Protection Department,ENABLING PROGRAMMES - Historic Environ Prog Grants
368,DCMS,EH,13/03/2012,Gloucestershire County Council,81001913,"30,000.00",Heritage Protection & Planning Group - Heritage Protection Department,ENABLING PROGRAMMES - Historic Environ Prog Grants
369,DCMS,EH,13/03/2012,Museum of London Arch Services,81001902,"100,000.00",Heritage Protection & Planning Group - Heritage Protection Department,ENABLING PROGRAMMES - Historic Environ Prog Grants
370,DCMS,EH,13/03/2012,Museum of London Arch Services,81001931,"30,629.60",Heritage Protection & Planning Group - Heritage Protection Department,ENABLING PROGRAMMES - Historic Environ Prog Grants
371,DCMS,EH,13/03/2012,Museum of London Arch Services,81001932,"27,392.20",Heritage Protection & Planning Group - Heritage Protection Department,ENABLING PROGRAMMES - Historic Environ Prog Grants
372,DCMS,EH,07/03/2012,Devon County Council,81001886,"35,000.00",Heritage Protection & Planning Group - Heritage Protection Department,ENABLING PROGRAMMES - Historic Environ Prog Grants
373,DCMS,EH,28/03/2012,Devon County Council,81002042,"35,000.00",Heritage Protection & Planning Group - Heritage Protection Department,ENABLING PROGRAMMES - Historic Environ Prog Grants
374,DCMS,EH,13/03/2012,Newcastle University,81001919,"27,500.00",Heritage Protection & Planning Group - Heritage Protection Department,ENABLING PROGRAMMES - Historic Environ Prog Grants
375,DCMS,EH,28/03/2012,City Of Stoke On Trent,81002029,"50,000.00",Heritage Protection & Planning Group - Heritage Protection Department,ENABLING PROGRAMMES - Historic Environ Prog Grants
376,DCMS,EH,13/03/2012,Oxford Archaeology North,81001900,"25,565.77",Heritage Protection & Planning Group - Heritage Protection Department,ENABLING PROGRAMMES - Historic Environ Prog Grants
377,DCMS,EH,13/03/2012,Oxford Archaeology North,81001903,"25,000.00",Heritage Protection & Planning Group - Heritage Protection Department,ENABLING PROGRAMMES - Historic Environ Prog Grants
378,DCMS,EH,20/03/2012,Oxford Archaeology North,81001950,"25,000.00",Heritage Protection & Planning Group - Heritage Protection Department,ENABLING PROGRAMMES - Historic Environ Prog Grants
379,DCMS,EH,28/03/2012,University of Manchester,81002008,"31,400.00",Heritage Protection & Planning Group - Heritage Protection Department,ENABLING PROGRAMMES - Historic Environ Prog Grants
380,DCMS,EH,23/03/2012,Milton Keynes Council,90513113,"38,797.00",Heritage Protection & Planning Group - National Planning Department,GRANTS PAYABLE - AREA
381,DCMS,EH,27/03/2012,Milton Keynes Council,90513173,"129,591.80",Heritage Protection & Planning Group - National Planning Department,GRANTS PAYABLE - AREA
382,DCMS,EH,21/03/2012,LB of Hammersmith and Fulham,90513051,"40,646.00",Heritage Protection & Planning Group - National Planning Department,GRANTS PAYABLE - HISTORIC BUILDINGS
383,DCMS,EH,16/03/2012,London Borough of Camden,90512987,"68,000.00",Heritage Protection & Planning Group - National Planning Department,GRANTS PAYABLE - HISTORIC BUILDINGS
384,DCMS,EH,22/03/2012,London Borough of Camden,90513062,"29,750.00",Heritage Protection & Planning Group - National Planning Department,GRANTS PAYABLE - HISTORIC BUILDINGS
385,DCMS,EH,23/03/2012,London Borough of Camden,90513075,"26,600.00",Heritage Protection & Planning Group - National Planning Department,GRANTS PAYABLE - HISTORIC BUILDINGS
386,DCMS,EH,12/03/2012,PCC of St Margaret Hollinwood,90512923,"57,000.00",Heritage Protection & Planning Group - National Planning Department,GRANTS PAYABLE - PLACES OF WORSHIP
387,DCMS,EH,12/03/2012,PCC of St Margaret Hollinwood,90512923,"37,500.00",Heritage Protection & Planning Group - National Planning Department,GRANTS PAYABLE - PLACES OF WORSHIP
388,DCMS,EH,27/03/2012,Assemblies of the First Born,90513170,"77,000.00",Heritage Protection & Planning Group - National Planning Department,GRANTS PAYABLE - PLACES OF WORSHIP
389,DCMS,EH,14/03/2012,The National Trust Warminster,90512971,"65,800.00",Heritage Protection & Planning Group - National Planning Department,GRANTS PAYABLE - HISTORIC BUILDINGS
390,DCMS,EH,23/03/2012,The National Trust Warminster,90513091,"383,550.00",Heritage Protection & Planning Group - National Planning Department,GRANTS PAYABLE - HISTORIC BUILDINGS
391,DCMS,EH,22/03/2012,Westminster City Council,90513064,"28,800.00",Heritage Protection & Planning Group - National Planning Department,GRANTS PAYABLE - OTHER GRANTS
392,DCMS,EH,14/03/2012,The National Trust Worksop,90512957,"60,000.00",Heritage Protection & Planning Group - National Planning Department,GRANTS PAYABLE - HISTORIC BUILDINGS
393,DCMS,EH,16/03/2012,Swalcliffe PCC,90513009,"31,500.00",Heritage Protection & Planning Group - National Planning Department,GRANTS PAYABLE - PLACES OF WORSHIP
394,DCMS,EH,14/03/2012,Harlaxton College Uni Evansville,90512956,"28,950.00",Heritage Protection & Planning Group - National Planning Department,GRANTS PAYABLE - HISTORIC BUILDINGS
395,DCMS,EH,14/03/2012,PCC of St Margaret,90512976,"31,442.00",Heritage Protection & Planning Group - National Planning Department,GRANTS PAYABLE - PLACES OF WORSHIP
396,DCMS,EH,19/03/2012,LB of Islington,90513005,"25,543.00",Heritage Protection & Planning Group - National Planning Department,GRANTS PAYABLE - AREA
397,DCMS,EH,26/03/2012,Oxborough PCC,90513149,"55,500.00",Heritage Protection & Planning Group - National Planning Department,GRANTS PAYABLE - PLACES OF WORSHIP
398,DCMS,EH,23/03/2012,Birmingham City Council,90513099,"25,000.00",Heritage Protection & Planning Group - National Planning Department,GRANTS PAYABLE - HISTORIC BUILDINGS
399,DCMS,EH,05/03/2012,Stockton on Tees Borough Council,90512889,"25,626.00",Heritage Protection & Planning Group - National Planning Department,GRANTS PAYABLE - AREA
400,DCMS,EH,28/03/2012,Haringey Council,90513188,"25,041.00",Heritage Protection & Planning Group - National Planning Department,GRANTS PAYABLE - AREA
401,DCMS,EH,02/03/2012,Whitby PCC,90512873,"16,800.00",Heritage Protection & Planning Group - National Planning Department,GRANTS PAYABLE - PLACES OF WORSHIP
402,DCMS,EH,02/03/2012,Whitby PCC,90512873,"75,000.00",Heritage Protection & Planning Group - National Planning Department,GRANTS PAYABLE - PLACES OF WORSHIP
403,DCMS,EH,16/03/2012,SS Michael Bartholomew Great Lever,90513014,"42,000.00",Heritage Protection & Planning Group - National Planning Department,GRANTS PAYABLE - PLACES OF WORSHIP
404,DCMS,EH,23/03/2012,London Borough of Sutton,90513071,"37,232.00",Heritage Protection & Planning Group - National Planning Department,GRANTS PAYABLE - HISTORIC BUILDINGS
405,DCMS,EH,19/03/2012,Ushaw College,90513025,"31,747.00",Heritage Protection & Planning Group - National Planning Department,GRANTS PAYABLE - HISTORIC BUILDINGS
406,DCMS,EH,23/03/2012,London Borough of Hounslow,90513077,"101,320.00",Heritage Protection & Planning Group - National Planning Department,GRANTS PAYABLE - HISTORIC BUILDINGS
407,DCMS,EH,26/03/2012,The Finchingfield Guildhall Trust,90513159,"42,841.00",Heritage Protection & Planning Group - National Planning Department,GRANTS PAYABLE - HISTORIC BUILDINGS
408,DCMS,EH,16/03/2012,Heritage Trust of Lincolnshire,90512997,"177,870.00",Heritage Protection & Planning Group - National Planning Department,GRANTS PAYABLE - HISTORIC BUILDINGS
409,DCMS,EH,07/03/2012,Saltaire URC,90512908,"49,389.00",Heritage Protection & Planning Group - National Planning Department,GRANTS PAYABLE - PLACES OF WORSHIP
410,DCMS,EH,05/03/2012,Redcar and Cleveland BC,90512890,"232,622.00",Heritage Protection & Planning Group - National Planning Department,GRANTS PAYABLE - HISTORIC BUILDINGS
411,DCMS,EH,05/03/2012,Redcar and Cleveland BC,90512894,"33,744.00",Heritage Protection & Planning Group - National Planning Department,GRANTS PAYABLE - HISTORIC BUILDINGS
412,DCMS,EH,23/03/2012,St Lukes Church New Rossington,90513103,"49,000.00",Heritage Protection & Planning Group - National Planning Department,GRANTS PAYABLE - PLACES OF WORSHIP
413,DCMS,EH,23/03/2012,St Lukes Church New Rossington,90513103,"10,400.00",Heritage Protection & Planning Group - National Planning Department,GRANTS PAYABLE - PLACES OF WORSHIP
414,DCMS,EH,26/03/2012,Durham Cathedral,90513131,"69,779.00",Heritage Protection & Planning Group - National Planning Department,GRANTS PAYABLE - HISTORIC BUILDINGS
415,DCMS,EH,12/03/2012,The Churches Conservation Trust,90512928,"68,419.00",Heritage Protection & Planning Group - National Planning Department,GRANTS PAYABLE - HISTORIC BUILDINGS
416,DCMS,EH,16/03/2012,Hagley Hall,90512986,"39,500.00",Heritage Protection & Planning Group - National Planning Department,GRANTS PAYABLE - HISTORIC BUILDINGS
417,DCMS,EH,19/03/2012,Derbyshire County Council,90513028,"45,600.00",Heritage Protection & Planning Group - National Planning Department,GRANTS PAYABLE - HISTORIC BUILDINGS
418,DCMS,EH,21/03/2012,Norfolk Churches Trust,90513035,"50,644.00",Heritage Protection & Planning Group - National Planning Department,GRANTS PAYABLE - HISTORIC BUILDINGS
419,DCMS,EH,21/03/2012,Firle Place,90513060,"45,000.00",Heritage Protection & Planning Group - National Planning Department,GRANTS PAYABLE - HISTORIC BUILDINGS
420,DCMS,EH,28/03/2012,The Wolfeton Riding House Trust,90513186,"36,000.00",Heritage Protection & Planning Group - National Planning Department,GRANTS PAYABLE - HISTORIC BUILDINGS
421,DCMS,EH,28/03/2012,Foulden PCC,90513154,"1,500.00",Heritage Protection & Planning Group - National Planning Department,GRANTS PAYABLE - PLACES OF WORSHIP
422,DCMS,EH,28/03/2012,Foulden PCC,90513154,"26,000.00",Heritage Protection & Planning Group - National Planning Department,GRANTS PAYABLE - PLACES OF WORSHIP
423,DCMS,EH,14/03/2012,St Peter's PCC,90512975,"44,500.00",Heritage Protection & Planning Group - National Planning Department,GRANTS PAYABLE - PLACES OF WORSHIP
424,DCMS,EH,23/03/2012,St Peter's IPC Trust Corporation,90513114,"58,000.00",Heritage Protection & Planning Group - National Planning Department,GRANTS PAYABLE - PLACES OF WORSHIP
425,DCMS,EH,12/03/2012,PCC St Ann Manchester,90512926,"85,000.00",Heritage Protection & Planning Group - National Planning Department,GRANTS PAYABLE - PLACES OF WORSHIP
426,DCMS,EH,14/03/2012,St Chad's Parochial Church Council,90512966,"101,700.00",Heritage Protection & Planning Group - National Planning Department,GRANTS PAYABLE - PLACES OF WORSHIP
427,DCMS,EH,27/03/2012,Borlase Smart John Wells Trust Ltd,90513171,"50,000.00",Heritage Protection & Planning Group - National Planning Department,GRANTS PAYABLE - HISTORIC BUILDINGS
428,DCMS,EH,23/03/2012,Wakefield MDC,90513116,"48,600.00",Heritage Protection & Planning Group - National Planning Department,GRANTS PAYABLE - HISTORIC BUILDINGS
429,DCMS,EH,28/03/2012,Wakefield MDC,90513174,"27,000.00",Heritage Protection & Planning Group - National Planning Department,GRANTS PAYABLE - HISTORIC BUILDINGS
430,DCMS,EH,12/03/2012,PCC of St Catherine's Church,90512918,"296,000.00",Heritage Protection & Planning Group - National Planning Department,GRANTS PAYABLE - PLACES OF WORSHIP
431,DCMS,EH,14/03/2012,RC Parish of St Joseph Carterton,90512959,"47,423.00",Heritage Protection & Planning Group - National Planning Department,GRANTS PAYABLE - PLACES OF WORSHIP
432,DCMS,EH,27/03/2012,The Churches Conservation Trust,90513162,"26,793.00",Heritage Protection & Planning Group - National Planning Department,GRANTS PAYABLE - OTHER GRANTS
433,DCMS,EH,14/03/2012,Ulrome PCC Vicar & Wardens,90512961,"20,000.00",Heritage Protection & Planning Group - National Planning Department,GRANTS PAYABLE - PLACES OF WORSHIP
434,DCMS,EH,14/03/2012,Ulrome PCC Vicar & Wardens,90512961,"32,200.00",Heritage Protection & Planning Group - National Planning Department,GRANTS PAYABLE - PLACES OF WORSHIP
435,DCMS,EH,23/03/2012,The Corporate Body of Lincoln Cathedral,90513072,"187,500.00",Heritage Protection & Planning Group - National Planning Department,GRANTS PAYABLE - HISTORIC BUILDINGS
436,DCMS,EH,26/03/2012,Station Developments Ltd,90513134,"152,038.00",Heritage Protection & Planning Group - National Planning Department,GRANTS PAYABLE - HISTORIC BUILDINGS
437,DCMS,EH,12/03/2012,Weymouth & Portland Borough Co,90512917,"51,918.00",Heritage Protection & Planning Group - National Planning Department,GRANTS PAYABLE - AREA
438,DCMS,EH,12/03/2012,The Landmark Trust,90512950,"53,000.00",Heritage Protection & Planning Group - National Planning Department,GRANTS PAYABLE - HISTORIC BUILDINGS
439,DCMS,EH,26/03/2012,The Landmark Trust,90513153,"53,000.00",Heritage Protection & Planning Group - National Planning Department,GRANTS PAYABLE - HISTORIC BUILDINGS
440,DCMS,EH,07/03/2012,Pulham St Mary Magdalene PCC,90512898,"43,500.00",Heritage Protection & Planning Group - National Planning Department,GRANTS PAYABLE - PLACES OF WORSHIP
441,DCMS,EH,21/03/2012,Cowley Church PCC,90513049,"45,500.00",Heritage Protection & Planning Group - National Planning Department,GRANTS PAYABLE - PLACES OF WORSHIP
442,DCMS,EH,21/03/2012,PCC of Winwick,90513058,"151,000.00",Heritage Protection & Planning Group - National Planning Department,GRANTS PAYABLE - PLACES OF WORSHIP
443,DCMS,EH,07/03/2012,Brize Norton PCC,90512903,"63,500.00",Heritage Protection & Planning Group - National Planning Department,GRANTS PAYABLE - PLACES OF WORSHIP
444,DCMS,EH,21/03/2012,Elveden Farms Ltd,90513038,"32,417.00",Heritage Protection & Planning Group - National Planning Department,GRANTS PAYABLE - HISTORIC BUILDINGS
445,DCMS,EH,23/03/2012,Alderley Edge Methodist Church,90513110,"31,426.00",Heritage Protection & Planning Group - National Planning Department,GRANTS PAYABLE - PLACES OF WORSHIP
446,DCMS,EH,16/03/2012,PCC of St James in the City,90513013,"179,271.00",Heritage Protection & Planning Group - National Planning Department,GRANTS PAYABLE - HISTORIC BUILDINGS
447,DCMS,EH,07/03/2012,Burnley Borough Council,90512911,"103,544.00",Heritage Protection & Planning Group - National Planning Department,GRANTS PAYABLE - HISTORIC BUILDINGS
448,DCMS,EH,12/03/2012,London Borough of Lewisham,90512947,"95,647.00",Heritage Protection & Planning Group - National Planning Department,GRANTS PAYABLE - HISTORIC BUILDINGS
449,DCMS,EH,21/03/2012,London Borough of Merton,90513053,"55,867.00",Heritage Protection & Planning Group - National Planning Department,GRANTS PAYABLE - HISTORIC BUILDINGS
450,DCMS,EH,12/03/2012,London Borough of Ealing,90512941,"31,650.00",Heritage Protection & Planning Group - National Planning Department,GRANTS PAYABLE - HISTORIC BUILDINGS
451,DCMS,EH,27/03/2012,UK Historic Building Preservation Trust,90513165,"72,098.00",Heritage Protection & Planning Group - National Planning Department,GRANTS PAYABLE - HISTORIC BUILDINGS
452,DCMS,EH,27/03/2012,UK Historic Building Preservation Trust,90513166,"74,466.00",Heritage Protection & Planning Group - National Planning Department,GRANTS PAYABLE - HISTORIC BUILDINGS
453,DCMS,EH,05/03/2012,Pentney Abbey,90512888,"49,700.00",Heritage Protection & Planning Group - National Planning Department,GRANTS PAYABLE - HISTORIC BUILDINGS
454,DCMS,EH,19/03/2012,Pentney Abbey,90513027,"49,700.00",Heritage Protection & Planning Group - National Planning Department,GRANTS PAYABLE - HISTORIC BUILDINGS
455,DCMS,EH,28/03/2012,Woking Borough Council,90513190,"101,200.00",Heritage Protection & Planning Group - National Planning Department,GRANTS PAYABLE - HISTORIC BUILDINGS
456,DCMS,EH,20/03/2012,Lyme Bay Cider Company Ltd,1076729,"87,660.55",National Collections Group - Historic Properties Department,TOTAL STOCK - Retail Goods & Souvenirs Purch
457,DCMS,EH,22/03/2012,Lyme Bay Cider Company Ltd,1076775,"69,238.32",National Collections Group - Historic Properties Department,TOTAL STOCK - Retail Goods & Souvenirs Purch
458,DCMS,EH,19/03/2012,Tymeagain Ltd,1076707,"29,826.72",National Collections Group - Historic Properties Department,TOTAL STOCK - Retail Goods & Souvenirs Purch
